[Event "*** Biggest EVER Titled Tuesday"]
[Site "Chess.com"]
[Date "2018.04.17"]
[Round "9"]
[White "Marcus_Harvey"]
[Black "SloLev"]
[Result "0-1"]
[WhiteElo "2597"]
[BlackElo "2403"]
[TimeControl "180+2"]
[EndTime "15:08:46 PDT"]
[Termination "SloLev won by checkmate"]

1. Nf3 {[%clk 0:03:01.9]} 1... d5 {[%clk 0:02:58.7]} 2. c4 {[%clk 0:03:01]} 2...
e6 {[%clk 0:02:59.3]} 3. b3 {[%clk 0:03:01]} 3... Nf6 {[%clk 0:02:59.7]} 4. Bb2
{[%clk 0:03:01.7]} 4... Nbd7 {[%clk 0:03:01.2]} 5. e3 {[%clk 0:03:03]} 5... c6
{[%clk 0:03:02]} 6. Be2 {[%clk 0:03:04.3]} 6... Bd6 {[%clk 0:03:03.3]} 7. O-O
{[%clk 0:03:05.8]} 7... O-O {[%clk 0:03:04.8]} 8. d4 {[%clk 0:03:06.5]} 8... b6
{[%clk 0:03:05.8]} 9. Nc3 {[%clk 0:03:07.6]} 9... Bb7 {[%clk 0:03:07]} 10. a4
{[%clk 0:03:07.5]} 10... a5 {[%clk 0:03:02.5]} 11. Qc1 {[%clk 0:03:06.9]} 11...
Qe7 {[%clk 0:03:02]} 12. Ba3 {[%clk 0:03:04.7]} 12... Bb4 {[%clk 0:02:57.4]} 13.
Bxb4 {[%clk 0:03:01.5]} 13... axb4 {[%clk 0:02:55.5]} 14. Nd1 {[%clk 0:03:01.4]}
14... c5 {[%clk 0:02:54.2]} 15. Nb2 {[%clk 0:02:58]} 15... Ne4 {[%clk
0:02:52.3]} 16. Bd3 {[%clk 0:02:57.6]} 16... Nc3 {[%clk 0:02:53]} 17. Nd1 {[%clk
0:02:51]} 17... dxc4 {[%clk 0:02:49.7]} 18. Bxc4 {[%clk 0:02:38]} 18... Bxf3
{[%clk 0:02:29.5]} 19. gxf3 {[%clk 0:02:37.8]} 19... cxd4 {[%clk 0:02:26]} 20.
exd4 {[%clk 0:02:35.7]} 20... Nxd1 {[%clk 0:02:11.4]} 21. Rxd1 {[%clk
0:02:32.5]} 21... Nf6 {[%clk 0:01:59.9]} 22. Qg5 {[%clk 0:02:28.2]} 22... h6
{[%clk 0:01:49.3]} 23. Qe5 {[%clk 0:02:27.8]} 23... Rfd8 {[%clk 0:01:39.8]} 24.
Rac1 {[%clk 0:02:25.8]} 24... Ra5 {[%clk 0:01:39.4]} 25. Bb5 {[%clk 0:02:25.3]}
25... Ra7 {[%clk 0:01:35.7]} 26. Rc6 {[%clk 0:02:22.9]} 26... Nd5 {[%clk
0:01:32]} 27. Rdc1 {[%clk 0:02:19.1]} 27... Nc3 {[%clk 0:01:31.8]} 28. Rxb6
{[%clk 0:02:16.7]} 28... Rd5 {[%clk 0:01:27.6]} 29. Rb8+ {[%clk 0:02:07.9]}
29... Kh7 {[%clk 0:01:27]} 30. Bd3+ {[%clk 0:02:08.8]} 30... f5 {[%clk
0:01:21.3]} 31. Qe3 {[%clk 0:01:55.4]} 31... Rad7 {[%clk 0:01:15.4]} 32. Re1
{[%clk 0:01:39.7]} 32... R7d6 {[%clk 0:00:40]} 33. f4 {[%clk 0:01:28.3]} 33...
Qf6 {[%clk 0:00:36.5]} 34. Rxb4 {[%clk 0:01:25.6]} 34... Rxd4 {[%clk 0:00:33]}
35. Rxd4 {[%clk 0:01:25.8]} 35... Rxd4 {[%clk 0:00:32.3]} 36. Bxf5+ {[%clk
0:01:03.6]} 36... Qxf5 {[%clk 0:00:31.5]} 37. Qxc3 {[%clk 0:01:04.4]} 37... Rxf4
{[%clk 0:00:30.2]} 38. Re5 {[%clk 0:00:54.8]} 38... Rg4+ {[%clk 0:00:28.5]} 39.
Kf1 {[%clk 0:00:54.7]} 39... Qb1+ {[%clk 0:00:21.4]} 40. Re1 {[%clk 0:00:50.1]}
40... Qf5 {[%clk 0:00:18]} 41. Re3 {[%clk 0:00:35.1]} 41... Rf4 {[%clk
0:00:15.2]} 42. Qd3 {[%clk 0:00:23.2]} 42... Rxf2+ {[%clk 0:00:15.6]} 43. Kg1
{[%clk 0:00:24.4]} 43... Qxd3 {[%clk 0:00:10.9]} 44. Rxd3 {[%clk 0:00:25.1]}
44... Ra2 {[%clk 0:00:12.5]} 45. Rd7 {[%clk 0:00:14.9]} 45... Kg6 {[%clk
0:00:12.9]} 46. Rb7 {[%clk 0:00:15.3]} 46... e5 {[%clk 0:00:12.3]} 47. Kf1
{[%clk 0:00:14.2]} 47... e4 {[%clk 0:00:13.3]} 48. Ke1 {[%clk 0:00:15.2]} 48...
Kf5 {[%clk 0:00:12.5]} 49. Rxg7 {[%clk 0:00:16.3]} 49... Kf4 {[%clk 0:00:13.9]}
50. Rg3 {[%clk 0:00:17.3]} 50... e3 {[%clk 0:00:13.7]} 51. Rg6 {[%clk 0:00:18]}
51... Kf3 {[%clk 0:00:13.9]} 52. Rf6+ {[%clk 0:00:18.8]} 52... Ke4 {[%clk
0:00:15.2]} 53. Rxh6 {[%clk 0:00:18.4]} 53... Ra3 {[%clk 0:00:16.1]} 54. Re6+
{[%clk 0:00:18.5]} 54... Kd3 {[%clk 0:00:17.2]} 55. Rd6+ {[%clk 0:00:19.7]}
55... Ke4 {[%clk 0:00:18.3]} 56. Rd1 {[%clk 0:00:20.6]} 56... Rxb3 {[%clk
0:00:18]} 57. Ra1 {[%clk 0:00:21.9]} 57... Rb2 {[%clk 0:00:17.9]} 58. Kf1 {[%clk
0:00:15.9]} 58... Rxh2 {[%clk 0:00:18.6]} 59. Kg1 {[%clk 0:00:17.3]} 59... Rh8
{[%clk 0:00:17.1]} 60. a5 {[%clk 0:00:16.6]} 60... Kf3 {[%clk 0:00:18.5]} 61.
Rf1+ {[%clk 0:00:10.4]} 61... Ke2 {[%clk 0:00:17.9]} 62. Ra1 {[%clk 0:00:12.3]}
62... Rg8+ {[%clk 0:00:18.4]} 63. Kh2 {[%clk 0:00:13.7]} 63... Kf2 {[%clk
0:00:19.6]} 64. a6 {[%clk 0:00:13.4]} 64... Rh8# {[%clk 0:00:19.8]} 0-1

[Event "*** Biggest EVER Titled Tuesday"]
[Site "Chess.com"]
[Date "2018.04.17"]
[Round "9"]
[White "Abund"]
[Black "SenseiJulio"]
[Result "0-1"]
[WhiteElo "2486"]
[BlackElo "2632"]
[TimeControl "180+2"]
[EndTime "15:09:03 PDT"]
[Termination "SenseiJulio won by resignation"]

1. Nf3 {[%clk 0:03:01.9]} 1... Nf6 {[%clk 0:02:58.3]} 2. c4 {[%clk 0:03:02.5]}
2... e6 {[%clk 0:02:58.9]} 3. Nc3 {[%clk 0:03:03.2]} 3... d5 {[%clk 0:03:00.2]}
4. d4 {[%clk 0:03:03.2]} 4... c6 {[%clk 0:03:01.6]} 5. e3 {[%clk 0:03:01.1]}
5... Nbd7 {[%clk 0:03:01.6]} 6. Qc2 {[%clk 0:02:59.8]} 6... Bd6 {[%clk
0:03:02.5]} 7. b3 {[%clk 0:03:01]} 7... O-O {[%clk 0:03:02.6]} 8. Bd3 {[%clk
0:03:02.2]} 8... e5 {[%clk 0:02:53.1]} 9. cxd5 {[%clk 0:03:03.2]} 9... cxd5
{[%clk 0:02:53.9]} 10. Nb5 {[%clk 0:02:59.4]} 10... Bb4+ {[%clk 0:02:28.6]} 11.
Bd2 {[%clk 0:02:59.7]} 11... Bxd2+ {[%clk 0:02:29.5]} 12. Nxd2 {[%clk
0:03:00.2]} 12... e4 {[%clk 0:02:31]} 13. Be2 {[%clk 0:03:00.1]} 13... a6 {[%clk
0:02:31.6]} 14. Nc3 {[%clk 0:02:55.2]} 14... Nb8 {[%clk 0:02:31.1]} 15. Na4
{[%clk 0:02:46.1]} 15... Nc6 {[%clk 0:02:31.1]} 16. O-O {[%clk 0:02:40.2]} 16...
Bg4 {[%clk 0:02:13.7]} 17. Nb1 {[%clk 0:02:21.1]} 17... Qd6 {[%clk 0:02:01.8]}
18. h3 {[%clk 0:02:06.2]} 18... Nb4 {[%clk 0:01:53.4]} 19. Qd2 {[%clk
0:02:01.9]} 19... Bxe2 {[%clk 0:01:54]} 20. Qxe2 {[%clk 0:02:03.8]} 20... Rac8
{[%clk 0:01:54.1]} 21. Nd2 {[%clk 0:01:27.2]} 21... Nd3 {[%clk 0:01:51.3]} 22.
Rfb1 {[%clk 0:01:08.6]} 22... Qa3 {[%clk 0:01:16.4]} 23. Nf1 {[%clk 0:01:07.4]}
23... Rc6 {[%clk 0:01:01.5]} 24. Nc5 {[%clk 0:00:35.4]} 24... Nxc5 {[%clk
0:01:01.4]} 25. dxc5 {[%clk 0:00:37.3]} 25... Rxc5 {[%clk 0:00:59.9]} 26. Rd1
{[%clk 0:00:38.4]} 26... Rfc8 {[%clk 0:00:55.5]} 27. Rd2 {[%clk 0:00:39.5]}
27... Rc1 {[%clk 0:00:53.5]} 28. Rxc1 {[%clk 0:00:38.1]} 28... Qxc1 {[%clk
0:00:54.3]} 29. Rd1 {[%clk 0:00:34.8]} 29... Qc2 {[%clk 0:00:55.1]} 30. Rd2
{[%clk 0:00:36]} 30... Qb1 {[%clk 0:00:56]} 31. Rd1 {[%clk 0:00:37.2]} 31... Rc1
{[%clk 0:00:56.9]} 32. Rxc1 {[%clk 0:00:37.3]} 32... Qxc1 {[%clk 0:00:58]} 33.
g4 {[%clk 0:00:33.4]} 33... h6 {[%clk 0:00:56.8]} 34. Kg2 {[%clk 0:00:34.5]}
34... Nd7 {[%clk 0:00:55.7]} 35. Qd2 {[%clk 0:00:27]} 35... Qxd2 {[%clk
0:00:54.9]} 36. Nxd2 {[%clk 0:00:28.1]} 36... Ne5 {[%clk 0:00:56.5]} 37. Nb1
{[%clk 0:00:23.2]} 37... Nc6 {[%clk 0:00:32.9]} 38. Nc3 {[%clk 0:00:23.1]} 38...
Ne7 {[%clk 0:00:32.3]} 39. f3 {[%clk 0:00:19.7]} 39... exf3+ {[%clk 0:00:32.2]}
40. Kxf3 {[%clk 0:00:21.6]} 40... Kf8 {[%clk 0:00:33.5]} 41. Ke2 {[%clk
0:00:15.3]} 41... Ke8 {[%clk 0:00:34.2]} 42. Kd3 {[%clk 0:00:16.3]} 42... Kd7
{[%clk 0:00:35.8]} 43. b4 {[%clk 0:00:11.7]} 43... Kd6 {[%clk 0:00:35.7]} 44. e4
{[%clk 0:00:07.4]} 44... Ke5 {[%clk 0:00:23.3]} 45. a3 {[%clk 0:00:05.2]} 45...
dxe4+ {[%clk 0:00:21.6]} 46. Nxe4 {[%clk 0:00:06.2]} 46... b6 {[%clk 0:00:22.9]}
47. Ng3 {[%clk 0:00:05.5]} 47... g6 {[%clk 0:00:21.2]} 48. Ke3 {[%clk
0:00:06.5]} 48... Nd5+ {[%clk 0:00:22.4]} 49. Kf3 {[%clk 0:00:05.1]} 49... Nc3
{[%clk 0:00:23.5]} 50. h4 {[%clk 0:00:05.4]} 50... Nb1 {[%clk 0:00:24.1]} 51. a4
{[%clk 0:00:06]} 51... a5 {[%clk 0:00:22.6]} 52. bxa5 {[%clk 0:00:05]} 52...
bxa5 {[%clk 0:00:23.7]} 53. Ne4 {[%clk 0:00:05.7]} 53... f5 {[%clk 0:00:24.2]}
54. gxf5 {[%clk 0:00:06.7]} 54... gxf5 {[%clk 0:00:26.1]} 55. Nc5 {[%clk
0:00:07.8]} 55... Nd2+ {[%clk 0:00:22.7]} 56. Ke2 {[%clk 0:00:07.1]} 56... Nc4
{[%clk 0:00:23.5]} 57. Kd3 {[%clk 0:00:07.2]} 57... Kd5 {[%clk 0:00:25.1]} 58.
Nb3 {[%clk 0:00:06.6]} 58... f4 {[%clk 0:00:25.2]} 59. Ke2 {[%clk 0:00:05.9]}
59... Ke4 {[%clk 0:00:24.6]} 60. Nc5+ {[%clk 0:00:06.4]} 60... Kd4 {[%clk
0:00:25.5]} 61. Nb7 {[%clk 0:00:06.6]} 61... Kd5 {[%clk 0:00:21.1]} 62. Kf3
{[%clk 0:00:07.4]} 62... Ke5 {[%clk 0:00:21.6]} 63. Nc5 {[%clk 0:00:07.4]} 63...
Kf5 {[%clk 0:00:22.5]} 64. Nd3 {[%clk 0:00:07.8]} 64... Ne5+ {[%clk 0:00:23.3]}
65. Ke2 {[%clk 0:00:05]} 65... Nxd3 {[%clk 0:00:23.1]} 66. Kxd3 {[%clk
0:00:06.9]} 66... Kg4 {[%clk 0:00:24.3]} 67. Ke4 {[%clk 0:00:07.9]} 67... f3
{[%clk 0:00:25.4]} 68. Ke3 {[%clk 0:00:09.1]} 68... Kg3 {[%clk 0:00:26.8]} 69.
h5 {[%clk 0:00:10.6]} 69... f2 {[%clk 0:00:28]} 70. Ke2 {[%clk 0:00:11.8]} 70...
Kg2 {[%clk 0:00:29.3]} 71. Kd2 {[%clk 0:00:13.4]} 71... f1=Q {[%clk 0:00:30.5]}
0-1

[Event "*** Biggest EVER Titled Tuesday"]
[Site "Chess.com"]
[Date "2018.04.17"]
[Round "9"]
[White "WarlordX"]
[Black "LordIron"]
[Result "1-0"]
[WhiteElo "2299"]
[BlackElo "2173"]
[TimeControl "180+2"]
[EndTime "15:10:18 PDT"]
[Termination "WarlordX won on time"]

1. e4 {[%clk 0:02:59.5]} 1... c5 {[%clk 0:03:00.9]} 2. Nc3 {[%clk 0:03:00.5]}
2... e6 {[%clk 0:02:57.4]} 3. g3 {[%clk 0:03:00.4]} 3... Nc6 {[%clk 0:02:57.1]}
4. Bg2 {[%clk 0:03:01.9]} 4... Be7 {[%clk 0:02:57.9]} 5. d3 {[%clk 0:03:03.4]}
5... d6 {[%clk 0:02:58.6]} 6. f4 {[%clk 0:03:04.3]} 6... Nd4 {[%clk 0:02:55]} 7.
Be3 {[%clk 0:03:04.6]} 7... h5 {[%clk 0:02:55.2]} 8. h3 {[%clk 0:03:05.8]} 8...
Nf6 {[%clk 0:02:47.9]} 9. Qd2 {[%clk 0:03:06.8]} 9... Bd7 {[%clk 0:02:45.4]} 10.
Nd1 {[%clk 0:03:08.1]} 10... Qc7 {[%clk 0:02:45.7]} 11. c3 {[%clk 0:03:09.3]}
11... Nc6 {[%clk 0:02:46]} 12. Nf3 {[%clk 0:03:10.7]} 12... g6 {[%clk
0:02:37.8]} 13. a3 {[%clk 0:03:09.1]} 13... Na5 {[%clk 0:02:31.6]} 14. Qc2
{[%clk 0:03:08.5]} 14... c4 {[%clk 0:02:32]} 15. d4 {[%clk 0:03:09]} 15... Nb3
{[%clk 0:02:30]} 16. Rb1 {[%clk 0:03:09.8]} 16... Ba4 {[%clk 0:02:31.6]} 17. Ng5
{[%clk 0:02:18.6]} 17... Nc5 {[%clk 0:02:19.1]} 18. Qd2 {[%clk 0:02:18.6]} 18...
Nd3+ {[%clk 0:02:14.5]} 19. Kf1 {[%clk 0:02:19.8]} 19... Bxd1 {[%clk 0:01:58.3]}
20. Rxd1 {[%clk 0:02:19.7]} 20... d5 {[%clk 0:01:59.9]} 21. e5 {[%clk
0:02:12.1]} 21... Nd7 {[%clk 0:01:57.2]} 22. Nf3 {[%clk 0:02:13.4]} 22... b5
{[%clk 0:01:41.8]} 23. Kg1 {[%clk 0:02:13.9]} 23... a5 {[%clk 0:01:40.9]} 24.
Bf1 {[%clk 0:02:15.3]} 24... b4 {[%clk 0:01:32.8]} 25. axb4 {[%clk 0:02:14.4]}
25... axb4 {[%clk 0:01:29.9]} 26. Bxd3 {[%clk 0:02:15.5]} 26... cxd3 {[%clk
0:01:21]} 27. Qxd3 {[%clk 0:02:17.4]} 27... Ra2 {[%clk 0:01:11.6]} 28. Rh2
{[%clk 0:02:17.1]} 28... Nb6 {[%clk 0:01:07.3]} 29. Qb5+ {[%clk 0:01:41.9]}
29... Nd7 {[%clk 0:01:06.1]} 30. cxb4 {[%clk 0:01:36.8]} 30... O-O {[%clk
0:01:01]} 31. g4 {[%clk 0:01:37.2]} 31... Rb8 {[%clk 0:01:00.5]} 32. Qd3 {[%clk
0:01:27.4]} 32... hxg4 {[%clk 0:00:57.4]} 33. hxg4 {[%clk 0:01:28.9]} 33... Rxb4
{[%clk 0:00:58.9]} 34. Rdd2 {[%clk 0:01:07.2]} 34... Qc1+ {[%clk 0:00:53.2]} 35.
Qf1 {[%clk 0:01:06.2]} 35... Qxf1+ {[%clk 0:00:31.8]} 36. Kxf1 {[%clk
0:01:06.4]} 36... Nb6 {[%clk 0:00:33.7]} 37. Rc2 {[%clk 0:00:53]} 37... Nc4
{[%clk 0:00:32.2]} 38. Bc1 {[%clk 0:00:54.6]} 38... Rb3 {[%clk 0:00:30]} 39.
Rhf2 {[%clk 0:00:49.5]} 39... Bb4 {[%clk 0:00:29.3]} 40. f5 {[%clk 0:00:45.9]}
40... Ra1 {[%clk 0:00:24.4]} 41. Kg2 {[%clk 0:00:46.4]} 41... Rd3 {[%clk
0:00:22]} 42. fxe6 {[%clk 0:00:45.4]} 42... fxe6 {[%clk 0:00:22.5]} 43. Kg3
{[%clk 0:00:42.9]} 43... Rd1 {[%clk 0:00:21.9]} 44. b3 {[%clk 0:00:41.9]} 44...
Rdxc1 {[%clk 0:00:21.7]} 45. Rxc1 {[%clk 0:00:43.4]} 45... Rxc1 {[%clk
0:00:22.8]} 46. bxc4 {[%clk 0:00:45.3]} 46... dxc4 {[%clk 0:00:23.1]} 47. Kf4
{[%clk 0:00:40.4]} 47... c3 {[%clk 0:00:20]} 48. Ke3 {[%clk 0:00:37.7]} 48...
Rd1 {[%clk 0:00:20.3]} 49. Ng5 {[%clk 0:00:35.6]} 49... Rd2 {[%clk 0:00:17.3]}
50. Rxd2 {[%clk 0:00:09.1]} 50... cxd2 {[%clk 0:00:19.2]} 51. Ke2 {[%clk
0:00:10.1]} 51... Bc3 {[%clk 0:00:19.6]} 52. Nf3 {[%clk 0:00:11.4]} 52... Kf7
{[%clk 0:00:19.3]} 53. Nxd2 {[%clk 0:00:11.1]} 53... Bxd4 {[%clk 0:00:20.6]} 54.
Nf3 {[%clk 0:00:12.8]} 54... Bc3 {[%clk 0:00:21.3]} 55. Kd3 {[%clk 0:00:14.4]}
55... Bb2 {[%clk 0:00:21.7]} 56. Ke4 {[%clk 0:00:16.3]} 56... Bc1 {[%clk
0:00:21.3]} 57. Nd4 {[%clk 0:00:17.2]} 57... Bb2 {[%clk 0:00:21.3]} 58. Nc6
{[%clk 0:00:17.9]} 58... Bc3 {[%clk 0:00:21.2]} 59. Kf4 {[%clk 0:00:19.2]} 59...
Bd2+ {[%clk 0:00:21.6]} 60. Ke4 {[%clk 0:00:19.9]} 60... Bc3 {[%clk 0:00:22.9]}
61. Kd3 {[%clk 0:00:21.4]} 61... Bb2 {[%clk 0:00:23.7]} 62. Kc4 {[%clk
0:00:22.8]} 62... Bc1 {[%clk 0:00:24.4]} 63. Kc5 {[%clk 0:00:23.8]} 63... Ba3+
{[%clk 0:00:23.8]} 64. Kb6 {[%clk 0:00:25]} 64... Ke8 {[%clk 0:00:24.3]} 65. Kc7
{[%clk 0:00:26]} 65... Kf7 {[%clk 0:00:22.1]} 66. Kd7 {[%clk 0:00:27]} 66... Bb2
{[%clk 0:00:19.6]} 67. Nd8+ {[%clk 0:00:27.1]} 67... Kg7 {[%clk 0:00:19.9]} 68.
Kxe6 {[%clk 0:00:28.7]} 68... Kh6 {[%clk 0:00:20.7]} 69. Nf7+ {[%clk 0:00:28.3]}
69... Kg7 {[%clk 0:00:21.3]} 70. Ng5 {[%clk 0:00:26.8]} 70... Kh6 {[%clk
0:00:22.3]} 71. Nf3 {[%clk 0:00:27.3]} 71... Kg7 {[%clk 0:00:18.7]} 72. Ke7
{[%clk 0:00:23.1]} 72... Ba3+ {[%clk 0:00:18.8]} 73. Ke8 {[%clk 0:00:22.7]}
73... Bb2 {[%clk 0:00:15.8]} 74. g5 {[%clk 0:00:23.2]} 74... Bc3 {[%clk
0:00:09.2]} 75. e6 {[%clk 0:00:24.5]} 75... Bb2 {[%clk 0:00:10.1]} 76. Nd2
{[%clk 0:00:23.4]} 76... Bc1 {[%clk 0:00:11]} 77. Ne4 {[%clk 0:00:24.8]} 77...
Bb2 {[%clk 0:00:11.4]} 78. Kd7 {[%clk 0:00:25]} 78... Ba3 {[%clk 0:00:08.2]} 79.
e7 {[%clk 0:00:25.2]} 79... Bxe7 {[%clk 0:00:08.4]} 80. Kxe7 {[%clk 0:00:25.8]}
1-0

[Event "*** Biggest EVER Titled Tuesday"]
[Site "Chess.com"]
[Date "2018.04.17"]
[Round "9"]
[White "pKiLz5Rn9b"]
[Black "Koksik_13"]
[Result "1-0"]
[WhiteElo "2640"]
[BlackElo "2504"]
[TimeControl "180+2"]
[EndTime "15:10:44 PDT"]
[Termination "pKiLz5Rn9b won on time"]

1. Nf3 {[%clk 0:03:01.9]} 1... d5 {[%clk 0:02:58.1]} 2. b3 {[%clk 0:03:02]} 2...
Nc6 {[%clk 0:02:58.7]} 3. Bb2 {[%clk 0:03:02.8]} 3... Bg4 {[%clk 0:03:00.2]} 4.
d4 {[%clk 0:03:03]} 4... g6 {[%clk 0:02:54.1]} 5. e3 {[%clk 0:03:01.5]} 5... Bg7
{[%clk 0:02:54.6]} 6. Be2 {[%clk 0:03:02.7]} 6... Nf6 {[%clk 0:02:53.6]} 7. Nbd2
{[%clk 0:03:03.8]} 7... O-O {[%clk 0:02:54.5]} 8. O-O {[%clk 0:03:05.4]} 8...
Ne4 {[%clk 0:02:55]} 9. c4 {[%clk 0:03:04.6]} 9... Nxd2 {[%clk 0:02:54.1]} 10.
Qxd2 {[%clk 0:03:01.4]} 10... dxc4 {[%clk 0:02:54.5]} 11. bxc4 {[%clk
0:02:59.5]} 11... e5 {[%clk 0:02:55.4]} 12. d5 {[%clk 0:02:57.1]} 12... e4
{[%clk 0:02:53.5]} 13. Nd4 {[%clk 0:02:35]} 13... Bxe2 {[%clk 0:02:42.2]} 14.
Nxe2 {[%clk 0:02:35.8]} 14... Ne5 {[%clk 0:02:40.1]} 15. Qc2 {[%clk 0:02:30.5]}
15... Nd3 {[%clk 0:02:34.7]} 16. Bxg7 {[%clk 0:02:30.1]} 16... Kxg7 {[%clk
0:02:36.6]} 17. Rad1 {[%clk 0:02:19.6]} 17... f5 {[%clk 0:02:35.3]} 18. Nd4
{[%clk 0:02:19.1]} 18... Nc5 {[%clk 0:02:33.3]} 19. Qb2 {[%clk 0:02:12.4]} 19...
Qf6 {[%clk 0:02:26.8]} 20. Rb1 {[%clk 0:02:08]} 20... b6 {[%clk 0:02:25.5]} 21.
Rfd1 {[%clk 0:02:06.4]} 21... Kg8 {[%clk 0:02:19]} 22. Qc2 {[%clk 0:01:59.7]}
22... Rae8 {[%clk 0:02:14.7]} 23. Nb3 {[%clk 0:01:58.7]} 23... Nd3 {[%clk
0:02:13]} 24. Nd4 {[%clk 0:01:41.8]} 24... f4 {[%clk 0:02:09.6]} 25. Ne6 {[%clk
0:01:34.8]} 25... f3 {[%clk 0:02:06.4]} 26. Nxf8 {[%clk 0:01:12.1]} 26... Qg5
{[%clk 0:02:06]} 27. g3 {[%clk 0:01:13.3]} 27... Qg4 {[%clk 0:02:03.6]} 28. Kh1
{[%clk 0:01:14.1]} 28... Qh3 {[%clk 0:02:04.5]} 29. Rg1 {[%clk 0:01:14.3]} 29...
Rxf8 {[%clk 0:00:51.8]} 30. g4 {[%clk 0:01:14.3]} 30... g5 {[%clk 0:00:42.6]}
31. Rg3 {[%clk 0:01:11.6]} 31... Qh6 {[%clk 0:00:41.1]} 32. Rd1 {[%clk
0:01:12.6]} 32... Qf6 {[%clk 0:00:31.4]} 33. Kg1 {[%clk 0:01:09.6]} 33... Qe5
{[%clk 0:00:30.5]} 34. h3 {[%clk 0:01:05.6]} 34... Rf6 {[%clk 0:00:29.1]} 35. a3
{[%clk 0:00:53.3]} 35... Rh6 {[%clk 0:00:29.3]} 36. Rxd3 {[%clk 0:00:52.1]}
36... exd3 {[%clk 0:00:29.3]} 37. Qxd3 {[%clk 0:00:53.8]} 37... Rf6 {[%clk
0:00:29.4]} 38. Kh2 {[%clk 0:00:43.4]} 38... Qb2 {[%clk 0:00:29.6]} 39. Kg1
{[%clk 0:00:43.8]} 39... Qa1+ {[%clk 0:00:24.8]} 40. Kh2 {[%clk 0:00:38.9]}
40... Qb2 {[%clk 0:00:24.4]} 41. Kg1 {[%clk 0:00:39.5]} 41... Qc1+ {[%clk
0:00:24]} 42. Kh2 {[%clk 0:00:36.7]} 42... Qe1 {[%clk 0:00:12.2]} 43. Qc2 {[%clk
0:00:37.3]} 43... Qa1 {[%clk 0:00:06.2]} 44. Qe4 {[%clk 0:00:32.6]} 44... Qxa3
{[%clk 0:00:03.9]} 45. Rxf3 {[%clk 0:00:32.4]} 45... Qd6+ {[%clk 0:00:04]} 46.
Kg2 {[%clk 0:00:32.5]} 46... Rxf3 {[%clk 0:00:04.6]} 47. Kxf3 {[%clk 0:00:33.3]}
47... a5 {[%clk 0:00:05.6]} 48. Qf5 {[%clk 0:00:30.1]} 48... h6 {[%clk
0:00:04.8]} 49. e4 {[%clk 0:00:29.4]} 49... a4 {[%clk 0:00:06]} 50. Kg2 {[%clk
0:00:18]} 50... a3 {[%clk 0:00:05.9]} 51. e5 {[%clk 0:00:19.4]} 51... Qf8 {[%clk
0:00:03.6]} 52. Qg6+ {[%clk 0:00:12.1]} 52... Qg7 {[%clk 0:00:04.4]} 53. Qe6+
{[%clk 0:00:10.6]} 53... Qf7 {[%clk 0:00:05.1]} 54. Qc8+ {[%clk 0:00:11.5]}
54... Kg7 {[%clk 0:00:04.5]} 55. e6 {[%clk 0:00:12.9]} 55... Qe7 {[%clk
0:00:06]} 56. Qa8 {[%clk 0:00:13.4]} 56... Qc5 {[%clk 0:00:04.5]} 57. Qe8 {[%clk
0:00:14]} 57... a2 {[%clk 0:00:02.5]} 58. Qf7+ {[%clk 0:00:14.5]} 58... Kh8
{[%clk 0:00:02.9]} 59. e7 {[%clk 0:00:15.8]} 59... Qxe7 {[%clk 0:00:03.7]} 60.
Qxe7 {[%clk 0:00:17.6]} 60... a1=Q {[%clk 0:00:05.6]} 61. Qd8+ {[%clk
0:00:19.1]} 61... Kg7 {[%clk 0:00:05.9]} 62. Qxc7+ {[%clk 0:00:20.6]} 62... Kg8
{[%clk 0:00:07.3]} 63. Qd8+ {[%clk 0:00:21.5]} 63... Kg7 {[%clk 0:00:07.2]} 64.
Qe7+ {[%clk 0:00:22.8]} 64... Kg8 {[%clk 0:00:08.4]} 65. d6 {[%clk 0:00:24.1]}
65... Qa8+ {[%clk 0:00:07.4]} 66. Kh2 {[%clk 0:00:23.8]} 66... Qf3 {[%clk
0:00:06.6]} 67. Qe3 {[%clk 0:00:20.2]} 67... Qf7 {[%clk 0:00:03.3]} 68. Kg2
{[%clk 0:00:15.6]} 68... Qxc4 {[%clk 0:00:02.5]} 69. Qe5 {[%clk 0:00:13.5]}
69... Qc6+ {[%clk 0:00:02.8]} 70. Kg3 {[%clk 0:00:14.5]} 70... Qd7 {[%clk
0:00:03]} 71. Qf6 {[%clk 0:00:14.9]} 1-0

[Event "*** Biggest EVER Titled Tuesday"]
[Site "Chess.com"]
[Date "2018.04.17"]
[Round "10"]
[White "itisabigworld"]
[Black "AbdAlAgathos"]
[Result "1-0"]
[WhiteElo "2295"]
[BlackElo "2334"]
[TimeControl "180+2"]
[EndTime "15:16:31 PDT"]
[Termination "itisabigworld won by resignation"]

1. e4 {[%clk 0:03:01.9]} 1... e6 {[%clk 0:03:01]} 2. b3 {[%clk 0:03:01.6]} 2...
b6 {[%clk 0:03:00.9]} 3. Bb2 {[%clk 0:03:02.7]} 3... Bb7 {[%clk 0:03:02.5]} 4.
Nc3 {[%clk 0:03:01.3]} 4... c5 {[%clk 0:02:57.8]} 5. Nf3 {[%clk 0:03:01.9]} 5...
Nc6 {[%clk 0:02:59.2]} 6. g3 {[%clk 0:03:01.9]} 6... Nge7 {[%clk 0:03:00.3]} 7.
Bg2 {[%clk 0:03:03]} 7... Ng6 {[%clk 0:03:01.6]} 8. O-O {[%clk 0:03:02]} 8... d6
{[%clk 0:03:02.8]} 9. d4 {[%clk 0:03:03.1]} 9... cxd4 {[%clk 0:03:02.2]} 10.
Nxd4 {[%clk 0:03:04.6]} 10... Be7 {[%clk 0:02:59.2]} 11. f4 {[%clk 0:03:05]}
11... O-O {[%clk 0:02:49.8]} 12. f5 {[%clk 0:03:02.1]} 12... exf5 {[%clk
0:02:48.7]} 13. exf5 {[%clk 0:03:03.2]} 13... Nxd4 {[%clk 0:02:47.2]} 14. Bxb7
{[%clk 0:02:57.9]} 14... Bf6 {[%clk 0:02:33.6]} 15. Bxa8 {[%clk 0:02:50.8]}
15... Qxa8 {[%clk 0:02:35.5]} 16. fxg6 {[%clk 0:02:51.4]} 16... hxg6 {[%clk
0:02:36.2]} 17. Qd3 {[%clk 0:02:47.3]} 17... Rc8 {[%clk 0:02:34.9]} 18. Rxf6
{[%clk 0:02:47.4]} 18... gxf6 {[%clk 0:02:35.8]} 19. Qxd4 {[%clk 0:02:48.4]}
19... Qf3 {[%clk 0:02:35.7]} 20. Rf1 {[%clk 0:02:44.9]} 1-0

[Event "*** Biggest EVER Titled Tuesday"]
[Site "Chess.com"]
[Date "2018.04.17"]
[Round "10"]
[White "guillembaches"]
[Black "Nutflush"]
[Result "1-0"]
[WhiteElo "2236"]
[BlackElo "2022"]
[TimeControl "180+2"]
[EndTime "15:18:53 PDT"]
[Termination "guillembaches won by resignation"]

1. d4 {[%clk 0:03:01.9]} 1... Nf6 {[%clk 0:02:57.4]} 2. Bf4 {[%clk 0:03:02.7]}
2... d5 {[%clk 0:02:57.5]} 3. e3 {[%clk 0:03:02.5]} 3... c5 {[%clk 0:02:55.9]}
4. c3 {[%clk 0:03:03.5]} 4... Nc6 {[%clk 0:02:54.9]} 5. Nd2 {[%clk 0:03:04.5]}
5... e6 {[%clk 0:02:51]} 6. Bd3 {[%clk 0:03:04.2]} 6... cxd4 {[%clk 0:02:46.5]}
7. exd4 {[%clk 0:03:03.6]} 7... Bd6 {[%clk 0:02:45]} 8. Bg3 {[%clk 0:02:58.6]}
8... b6 {[%clk 0:02:38.8]} 9. Ngf3 {[%clk 0:02:49.8]} 9... Bb7 {[%clk
0:02:33.5]} 10. Ne5 {[%clk 0:02:47.9]} 10... Qc7 {[%clk 0:02:30]} 11. f4 {[%clk
0:02:45.1]} 11... Nd7 {[%clk 0:02:29.8]} 12. Qh5 {[%clk 0:02:34.4]} 12... Nf6
{[%clk 0:02:24.8]} 13. Qh3 {[%clk 0:02:27.7]} 13... O-O-O {[%clk 0:02:19.9]} 14.
O-O {[%clk 0:02:21.2]} 14... g6 {[%clk 0:02:07.7]} 15. Bh4 {[%clk 0:02:19.9]}
15... Be7 {[%clk 0:02:07.3]} 16. Nxf7 {[%clk 0:02:17.9]} 16... Ne4 {[%clk
0:01:55.7]} 17. Qxe6+ {[%clk 0:01:51.6]} 17... Kb8 {[%clk 0:01:55.6]} 18. Nxd8
{[%clk 0:01:42.3]} 18... Bxh4 {[%clk 0:01:52.8]} 19. Nxc6+ {[%clk 0:01:36.8]}
19... Bxc6 {[%clk 0:01:46.8]} 20. Nxe4 {[%clk 0:01:35.1]} 20... dxe4 {[%clk
0:01:48.7]} 21. Bxe4 {[%clk 0:01:33.4]} 1-0